[Event "Titled Tuesday Blitz January 03 Late 2023"]
[White "Nasuta, Grzegorz"]
[Black "Makarian, Rudik"]
[WhiteFideId "1141686"]
[BlackFideId "44105681"]
[WhiteElo "2552"]
[BlackElo "2545"]
[Result "1-0"]
[Round "07"]
[TimeControl "180+2"]
[Date "2023.01.03"]
[WhiteClock "0:00:03"]
[BlackClock "0:00:06"]

1. e4 {[%clk 0:03:00]}  e5 {[%clk 0:02:59]} 2. Nf3 {[%clk 0:03:01]}  Nc6 {[%clk 0:03:00]} 3. Bc4 {[%clk 0:03:01]}  Bc5 {[%clk 0:02:57]} 4. O-O {[%clk 0:03:00]}  Nf6 {[%clk 0:02:58]} 5. d3 {[%clk 0:03:00]}  h6 {[%clk 0:02:56]} 6. Re1 {[%clk 0:02:57]}  d6 {[%clk 0:02:56]} 7. c3 {[%clk 0:02:56]}  a5 {[%clk 0:02:56]} 8. Nbd2 {[%clk 0:02:55]}  Ba7 {[%clk 0:02:55]} 9. Nf1 {[%clk 0:02:51]}  O-O {[%clk 0:02:52]} 10. h3 {[%clk 0:02:51]}  Be6 {[%clk 0:02:50]} 11. Bb5 {[%clk 0:02:51]}  Ne7 {[%clk 0:02:48]} 12. d4 {[%clk 0:02:50]}  exd4 {[%clk 0:02:44]} 13. Nxd4 {[%clk 0:02:42]}  Ng6 {[%clk 0:02:40]} 14. Ng3 {[%clk 0:02:38]}  c6 {[%clk 0:02:30]} 15. Bd3 {[%clk 0:02:38]}  Re8 {[%clk 0:02:28]} 16. Bc2 {[%clk 0:02:33]}  Qc7 {[%clk 0:02:07]} 17. Be3 {[%clk 0:02:23]}  Bd7 {[%clk 0:01:49]} 18. Qd2 {[%clk 0:01:40]}  Re5 {[%clk 0:01:23]} 19. Rad1 {[%clk 0:01:23]}  Rae8 {[%clk 0:01:18]} 20. f4 {[%clk 0:00:48]}  Nxe4 {[%clk 0:01:07]} 21. Bxe4 {[%clk 0:00:40]}  Rxe4 {[%clk 0:01:08]} 22. Nxe4 {[%clk 0:00:40]}  Rxe4 {[%clk 0:01:08]} 23. Nf3 {[%clk 0:00:23]}  Bb8 {[%clk 0:00:45]} 24. Bf2 {[%clk 0:00:16]}  Rxf4 {[%clk 0:00:21]} 25. Bg3 {[%clk 0:00:15]}  d5 {[%clk 0:00:22]} 26. Bxf4 {[%clk 0:00:14]}  Nxf4 {[%clk 0:00:22]} 27. Qf2 {[%clk 0:00:09]}  Be6 {[%clk 0:00:18]} 28. Nd4 {[%clk 0:00:05]}  Qd6 {[%clk 0:00:12]} 29. Nf3 {[%clk 0:00:04]}  Bc7 {[%clk 0:00:10]} 30. Rd2 {[%clk 0:00:03]}  Bxh3 {[%clk 0:00:08]} 31. Ne5 {[%clk 0:00:03]}  Nxg2 {[%clk 0:00:07]} 32. Qxf7+ {[%clk 0:00:03]}  Kh7 {[%clk 0:00:07]} 33. Rxg2 {[%clk 0:00:02]}  Bxg2 {[%clk 0:00:07]} 34. Kxg2 {[%clk 0:00:03]}  Bd8 {[%clk 0:00:06]} 35. Qf5+ {[%clk 0:00:03]}  Kg8 {[%clk 0:00:06]} 36. Qf7+ {[%clk 0:00:03]}  Kh7 {[%clk 0:00:07]} 37. Qf5+ {[%clk 0:00:04]}  Kg8 {[%clk 0:00:07]} 38. Rf1 {[%clk 0:00:04]}  Bf6 {[%clk 0:00:07]} 39. Ng4 {[%clk 0:00:05]}  Bg5 {[%clk 0:00:06]} 40. Re1 {[%clk 0:00:04]}  Qd8 {[%clk 0:00:05]} 41. Qe6+ {[%clk 0:00:04]}  Kh7 {[%clk 0:00:06]} 42. Qf5+ {[%clk 0:00:04]}  Kg8 {[%clk 0:00:06]} 43. Re6 {[%clk 0:00:05]}  d4 {[%clk 0:00:06]} 44. Qg6 {[%clk 0:00:04]}  Kf8 {[%clk 0:00:06]} 45. Ne5 {[%clk 0:00:05]}  Qd5+ {[%clk 0:00:07]} 46. Kg3 {[%clk 0:00:04]}  Bh4+ {[%clk 0:00:02]} 47. Kxh4 {[%clk 0:00:02]}  Qh1+ {[%clk 0:00:03]} 48. Kg4 {[%clk 0:00:02]}  Qg2+ {[%clk 0:00:03]} 49. Kf4 {[%clk 0:00:03]}  Qd2+ {[%clk 0:00:03]} 50. Ke4 {[%clk 0:00:03]}  Qe3+ {[%clk 0:00:03]} 51. Kf5 {[%clk 0:00:03]}  Qf2+ {[%clk 0:00:03]} 52. Kg4 {[%clk 0:00:03]}  Qg2+ {[%clk 0:00:04]} 53. Kf4 {[%clk 0:00:02]}  Qd2+ {[%clk 0:00:04]} 54. Kg3 {[%clk 0:00:03]}  Qe1+ {[%clk 0:00:04]} 55. Kh2 {[%clk 0:00:03]}  Qf2+ {[%clk 0:00:03]} 56. Qg2 {[%clk 0:00:03]}  Qh4+ {[%clk 0:00:04]} 57. Kg1 {[%clk 0:00:03]}  Kg8 {[%clk 0:00:04]} 58. Nf3 {[%clk 0:00:02]}  Kh7 {[%clk 0:00:05]} 59. Nxh4 {[%clk 0:00:01]}  dxc3 {[%clk 0:00:06]} 60. Qg6+ {[%clk 0:00:02]}  Kg8 {[%clk 0:00:06]} 61. Re8# {[%clk 0:00:03]} 1-0


[Site "https://www.chess.com"]

[Event "Titled Tuesday Blitz January 03 Late 2023"]
[White "Baskakov, Egor"]
[Black "Perske, Thore"]
[WhiteFideId "24197866"]
[BlackFideId "12902195"]
[WhiteElo "2215"]
[BlackElo "2448"]
[Result "1-0"]
[Round "07"]
[TimeControl "180+2"]
[Date "2023.01.03"]
[WhiteClock "0:01:03"]
[BlackClock "0:00:02"]

1. e4 {[%clk 0:03:00]}  e6 {[%clk 0:03:00]} 2. Nc3 {[%clk 0:02:59]}  d5 {[%clk 0:03:00]} 3. g3 {[%clk 0:02:59]}  Nf6 {[%clk 0:02:59]} 4. Bg2 {[%clk 0:02:59]}  b6 {[%clk 0:02:42]} 5. exd5 {[%clk 0:02:57]}  exd5 {[%clk 0:02:41]} 6. Nge2 {[%clk 0:02:57]}  Bb7 {[%clk 0:02:39]} 7. O-O {[%clk 0:02:57]}  Be7 {[%clk 0:02:38]} 8. Nf4 {[%clk 0:02:55]}  O-O {[%clk 0:02:34]} 9. Re1 {[%clk 0:02:55]}  c6 {[%clk 0:02:26]} 10. d4 {[%clk 0:02:55]}  Re8 {[%clk 0:02:24]} 11. Nd3 {[%clk 0:02:54]}  Nbd7 {[%clk 0:02:23]} 12. Bf4 {[%clk 0:02:52]}  Nf8 {[%clk 0:02:19]} 13. Qd2 {[%clk 0:02:47]}  Ne6 {[%clk 0:02:19]} 14. Be5 {[%clk 0:02:46]}  Nd7 {[%clk 0:02:17]} 15. Nf4 {[%clk 0:02:40]}  Nxe5 {[%clk 0:01:56]} 16. Nxe6 {[%clk 0:02:37]}  fxe6 {[%clk 0:01:57]} 17. Rxe5 {[%clk 0:02:35]}  Bf6 {[%clk 0:01:56]} 18. Re2 {[%clk 0:02:35]}  e5 {[%clk 0:01:56]} 19. Rae1 {[%clk 0:02:29]}  Qc7 {[%clk 0:01:43]} 20. dxe5 {[%clk 0:02:22]}  Rxe5 {[%clk 0:01:36]} 21. Rxe5 {[%clk 0:02:21]}  Bxe5 {[%clk 0:01:34]} 22. Nxd5 {[%clk 0:02:21]}  cxd5 {[%clk 0:01:25]} 23. Bxd5+ {[%clk 0:02:22]}  Kh8 {[%clk 0:01:25]} 24. Bxb7 {[%clk 0:02:22]}  Qxb7 {[%clk 0:01:26]} 25. Rxe5 {[%clk 0:02:21]}  Rf8 {[%clk 0:01:13]} 26. Qe3 {[%clk 0:02:14]}  Qf7 {[%clk 0:00:54]} 27. b3 {[%clk 0:02:11]}  h6 {[%clk 0:00:52]} 28. c4 {[%clk 0:02:01]}  Rd8 {[%clk 0:00:40]} 29. Re7 {[%clk 0:01:53]}  Rd1+ {[%clk 0:00:36]} 30. Kg2 {[%clk 0:01:52]}  Qf5 {[%clk 0:00:18]} 31. Rxa7 {[%clk 0:01:38]}  Qb1 {[%clk 0:00:17]} 32. Ra8+ {[%clk 0:01:25]}  Kh7 {[%clk 0:00:17]} 33. Re8 {[%clk 0:01:25]}  Rg1+ {[%clk 0:00:16]} 34. Kf3 {[%clk 0:01:26]}  Qf5+ {[%clk 0:00:16]} 35. Ke2 {[%clk 0:01:16]}  Qg4+ {[%clk 0:00:08]} 36. f3 {[%clk 0:01:07]}  Rg2+ {[%clk 0:00:05]} 37. Kf1 {[%clk 0:01:03]}  Qh3 {[%clk 0:00:02]} 38. Qe4+ {[%clk 0:01:03]}  g6 {[%clk 0:00:02]} 39. Qe7# {[%clk 0:01:03]} 1-0


[Site "https://www.chess.com"]

[Event "Titled Tuesday Blitz January 03 Late 2023"]
[White "AidenRchess"]
[Black "Mosadeghpour, Masoud"]
[BlackFideId "12519278"]
[WhiteElo "2398"]
[BlackElo "2472"]
[Result "0-1"]
[Round "07"]
[TimeControl "180+2"]
[Date "2023.01.03"]
[WhiteClock "0:00:02"]
[BlackClock "0:01:25"]

1. e4 {[%clk 0:02:51]}  c5 {[%clk 0:02:58]} 2. Nf3 {[%clk 0:02:50]}  d6 {[%clk 0:02:59]} 3. d4 {[%clk 0:02:49]}  cxd4 {[%clk 0:03:00]} 4. Nxd4 {[%clk 0:02:49]}  Nf6 {[%clk 0:03:00]} 5. Nc3 {[%clk 0:02:49]}  Nc6 {[%clk 0:03:01]} 6. Bg5 {[%clk 0:02:49]}  e6 {[%clk 0:03:02]} 7. Qd2 {[%clk 0:02:49]}  a6 {[%clk 0:03:02]} 8. O-O-O {[%clk 0:02:49]}  Bd7 {[%clk 0:03:03]} 9. f4 {[%clk 0:02:48]}  Be7 {[%clk 0:03:03]} 10. Bxf6 {[%clk 0:02:40]}  Bxf6 {[%clk 0:03:04]} 11. Nxc6 {[%clk 0:02:39]}  Bxc6 {[%clk 0:03:05]} 12. Bd3 {[%clk 0:02:36]}  Qb6 {[%clk 0:03:01]} 13. Rhe1 {[%clk 0:02:30]}  O-O-O {[%clk 0:03:01]} 14. e5 {[%clk 0:02:25]}  Be7 {[%clk 0:02:56]} 15. f5 {[%clk 0:02:14]}  dxe5 {[%clk 0:02:53]} 16. fxe6 {[%clk 0:02:07]}  f6 {[%clk 0:02:51]} 17. Kb1 {[%clk 0:02:00]}  Kb8 {[%clk 0:02:49]} 18. Qe2 {[%clk 0:01:57]}  Rd6 {[%clk 0:02:48]} 19. Bc4 {[%clk 0:01:54]}  Rhd8 {[%clk 0:02:46]} 20. Rxd6 {[%clk 0:01:53]}  Rxd6 {[%clk 0:02:47]} 21. Rd1 {[%clk 0:01:37]}  Qd8 {[%clk 0:02:38]} 22. Rxd6 {[%clk 0:01:32]}  Qxd6 {[%clk 0:02:39]} 23. a3 {[%clk 0:01:29]}  g6 {[%clk 0:02:38]} 24. h4 {[%clk 0:01:20]}  f5 {[%clk 0:02:32]} 25. h5 {[%clk 0:01:18]}  e4 {[%clk 0:02:32]} 26. hxg6 {[%clk 0:01:15]}  hxg6 {[%clk 0:02:33]} 27. g4 {[%clk 0:01:15]}  Qd4 {[%clk 0:02:31]} 28. gxf5 {[%clk 0:01:08]}  gxf5 {[%clk 0:02:32]} 29. Bxa6 {[%clk 0:00:36]}  f4 {[%clk 0:02:27]} 30. Bb5 {[%clk 0:00:29]}  f3 {[%clk 0:02:27]} 31. Qf1 {[%clk 0:00:26]}  f2 {[%clk 0:01:53]} 32. Bxc6 {[%clk 0:00:20]}  bxc6 {[%clk 0:01:54]} 33. Nd1 {[%clk 0:00:12]}  e3 {[%clk 0:01:39]} 34. Nc3 {[%clk 0:00:05]}  Bf6 {[%clk 0:01:33]} 35. a4 {[%clk 0:00:03]}  Ka7 {[%clk 0:01:28]} 36. a5 {[%clk 0:00:02]}  Qb4 {[%clk 0:01:25]} 0-1


[Site "https://www.chess.com"]

[Event "Titled Tuesday Blitz January 03 Late 2023"]
[White "Paravyan, David"]
[Black "Haydon, David L"]
[WhiteFideId "4194985"]
[BlackFideId "415405"]
[WhiteElo "2601"]
[BlackElo "2253"]
[Result "1-0"]
[Round "07"]
[TimeControl "180+2"]
[Date "2023.01.03"]
[WhiteClock "0:02:26"]
[BlackClock "0:01:56"]

1. e4 {[%clk 0:03:00]}  c6 {[%clk 0:03:00]} 2. d4 {[%clk 0:03:00]}  d5 {[%clk 0:03:01]} 3. e5 {[%clk 0:03:00]}  Bf5 {[%clk 0:03:01]} 4. h4 {[%clk 0:03:00]}  h5 {[%clk 0:03:00]} 5. Bd3 {[%clk 0:03:00]}  Bxd3 {[%clk 0:02:58]} 6. Qxd3 {[%clk 0:03:01]}  e6 {[%clk 0:02:58]} 7. Nf3 {[%clk 0:03:02]}  Ne7 {[%clk 0:02:58]} 8. Bg5 {[%clk 0:02:57]}  Nd7 {[%clk 0:02:58]} 9. Nbd2 {[%clk 0:02:56]}  Qb6 {[%clk 0:02:57]} 10. c3 {[%clk 0:02:54]}  Nf5 {[%clk 0:02:56]} 11. O-O {[%clk 0:02:47]}  Be7 {[%clk 0:02:54]} 12. Bxe7 {[%clk 0:02:47]}  Kxe7 {[%clk 0:02:54]} 13. a4 {[%clk 0:02:46]}  a5 {[%clk 0:02:53]} 14. g3 {[%clk 0:02:44]}  c5 {[%clk 0:02:52]} 15. Rfb1 {[%clk 0:02:41]}  cxd4 {[%clk 0:02:48]} 16. Nxd4 {[%clk 0:02:39]}  g6 {[%clk 0:02:44]} 17. N2f3 {[%clk 0:02:37]}  Rag8 {[%clk 0:02:30]} 18. b4 {[%clk 0:02:36]}  Nxd4 {[%clk 0:02:26]} 19. cxd4 {[%clk 0:02:33]}  axb4 {[%clk 0:02:26]} 20. a5 {[%clk 0:02:31]}  Qa6 {[%clk 0:02:25]} 21. Qd2 {[%clk 0:02:32]}  Rb8 {[%clk 0:02:01]} 22. Qxb4+ {[%clk 0:02:29]}  Ke8 {[%clk 0:02:01]} 23. Rc1 {[%clk 0:02:29]}  Qd3 {[%clk 0:01:56]} 24. Ng5 {[%clk 0:02:26]} 1-0


[Site "https://www.chess.com"]

[Event "Titled Tuesday Blitz January 03 Late 2023"]
[White "Atanasov, Anthony"]
[Black "Lazavik, Denis"]
[WhiteFideId "2623897"]
[BlackFideId "13515110"]
[WhiteElo "2368"]
[BlackElo "2544"]
[Result "0-1"]
[Round "07"]
[TimeControl "180+2"]
[Date "2023.01.03"]
[WhiteClock "0:01:23"]
[BlackClock "0:02:09"]

1. d4 {[%clk 0:03:00]}  Nf6 {[%clk 0:02:59]} 2. Nf3 {[%clk 0:02:59]}  d5 {[%clk 0:02:59]} 3. Bf4 {[%clk 0:02:57]}  c5 {[%clk 0:02:58]} 4. e3 {[%clk 0:02:57]}  Nc6 {[%clk 0:02:59]} 5. Nbd2 {[%clk 0:02:57]}  Bg4 {[%clk 0:03:00]} 6. c3 {[%clk 0:02:58]}  e6 {[%clk 0:03:00]} 7. Qb3 {[%clk 0:02:58]}  Qc8 {[%clk 0:03:00]} 8. h3 {[%clk 0:02:58]}  Bh5 {[%clk 0:03:01]} 9. Nh4 {[%clk 0:02:58]}  Be7 {[%clk 0:03:01]} 10. g4 {[%clk 0:02:58]}  Bg6 {[%clk 0:03:01]} 11. Nxg6 {[%clk 0:02:59]}  hxg6 {[%clk 0:03:02]} 12. Bg2 {[%clk 0:02:59]}  cxd4 {[%clk 0:03:03]} 13. exd4 {[%clk 0:02:59]}  Qd7 {[%clk 0:03:03]} 14. O-O-O {[%clk 0:03:00]}  Rc8 {[%clk 0:03:02]} 15. Kb1 {[%clk 0:02:57]}  Na5 {[%clk 0:03:02]} 16. Qc2 {[%clk 0:02:56]}  b5 {[%clk 0:03:03]} 17. Nf3 {[%clk 0:02:53]}  b4 {[%clk 0:03:03]} 18. Ne5 {[%clk 0:02:53]}  Qb5 {[%clk 0:03:00]} 19. g5 {[%clk 0:02:27]}  Nh5 {[%clk 0:02:35]} 20. Bd2 {[%clk 0:02:25]}  O-O {[%clk 0:02:31]} 21. Nxg6 {[%clk 0:02:19]}  fxg6 {[%clk 0:02:31]} 22. Qxg6 {[%clk 0:02:20]}  bxc3 {[%clk 0:02:26]} 23. Qxe6+ {[%clk 0:02:02]}  Kh8 {[%clk 0:02:23]} 24. Bxc3 {[%clk 0:01:57]}  Rxc3 {[%clk 0:02:21]} 25. Qxe7 {[%clk 0:01:57]}  Rb8 {[%clk 0:02:19]} 26. Rd2 {[%clk 0:01:42]}  Nc4 {[%clk 0:02:15]} 27. Re2 {[%clk 0:01:34]}  Na3+ {[%clk 0:02:09]} 28. Ka1 {[%clk 0:01:33]}  Nc2+ {[%clk 0:02:09]} 29. Rxc2 {[%clk 0:01:31]}  Rxc2 {[%clk 0:02:10]} 30. b3 {[%clk 0:01:23]}  Rxa2+ {[%clk 0:02:09]} 0-1


[Site "https://www.chess.com"]

[Event "Titled Tuesday Blitz January 03 Late 2023"]
[White "Grigoriants, Sergey"]
[Black "Di Berardino, Diego Rafael"]
[WhiteFideId "4130804"]
[BlackFideId "2105446"]
[WhiteElo "2562"]
[BlackElo "2479"]
[Result "1-0"]
[Round "07"]
[TimeControl "180+2"]
[Date "2023.01.03"]
[WhiteClock "0:01:03"]
[BlackClock "0:00:10"]

1. d4 {[%clk 0:03:00]}  Nf6 {[%clk 0:02:59]} 2. c4 {[%clk 0:03:00]}  g6 {[%clk 0:02:57]} 3. f3 {[%clk 0:02:59]}  Bg7 {[%clk 0:02:55]} 4. e4 {[%clk 0:02:59]}  O-O {[%clk 0:02:55]} 5. Nc3 {[%clk 0:03:00]}  d6 {[%clk 0:02:55]} 6. Nge2 {[%clk 0:03:00]}  c5 {[%clk 0:02:55]} 7. d5 {[%clk 0:02:59]}  e6 {[%clk 0:02:56]} 8. Ng3 {[%clk 0:02:59]}  exd5 {[%clk 0:02:55]} 9. cxd5 {[%clk 0:03:00]}  a6 {[%clk 0:02:50]} 10. a4 {[%clk 0:02:59]}  h5 {[%clk 0:02:49]} 11. Be2 {[%clk 0:02:54]}  h4 {[%clk 0:02:49]} 12. Nf1 {[%clk 0:02:55]}  Nh7 {[%clk 0:02:42]} 13. Ne3 {[%clk 0:02:49]}  f5 {[%clk 0:02:38]} 14. exf5 {[%clk 0:02:46]}  gxf5 {[%clk 0:02:38]} 15. Nc4 {[%clk 0:02:33]}  f4 {[%clk 0:02:02]} 16. Ne4 {[%clk 0:02:30]}  h3 {[%clk 0:01:37]} 17. g3 {[%clk 0:02:15]}  Bd4 {[%clk 0:01:15]} 18. Bxf4 {[%clk 0:02:07]}  Rxf4 {[%clk 0:01:13]} 19. gxf4 {[%clk 0:02:07]}  Qh4+ {[%clk 0:01:14]} 20. Kd2 {[%clk 0:02:07]}  Qxf4+ {[%clk 0:01:14]} 21. Kc2 {[%clk 0:02:07]}  Bf5 {[%clk 0:01:10]} 22. Bd3 {[%clk 0:02:07]}  Nd7 {[%clk 0:01:08]} 23. Nexd6 {[%clk 0:02:01]}  Bxd3+ {[%clk 0:00:48]} 24. Qxd3 {[%clk 0:02:01]}  Rf8 {[%clk 0:00:36]} 25. Rae1 {[%clk 0:01:37]}  Ndf6 {[%clk 0:00:16]} 26. Qg6+ {[%clk 0:01:11]}  Kh8 {[%clk 0:00:13]} 27. Re7 {[%clk 0:01:04]}  Rg8 {[%clk 0:00:10]} 28. Nf7# {[%clk 0:01:03]} 1-0


[Site "https://www.chess.com"]

[Event "Titled Tuesday Blitz January 03 Late 2023"]
[White "Sanal, Vahap"]
[Black "Alikhanov, Felix"]
[WhiteFideId "6300545"]
[BlackFideId "4157427"]
[WhiteElo "2600"]
[BlackElo "2434"]
[Result "0-1"]
[Round "07"]
[TimeControl "180+2"]
[Date "2023.01.03"]
[WhiteClock "0:00:01"]
[BlackClock "0:00:30"]

1. b3 {[%clk 0:03:00]}  Nc6 {[%clk 0:02:58]} 2. d4 {[%clk 0:02:58]}  d5 {[%clk 0:02:58]} 3. Nf3 {[%clk 0:02:57]}  Nf6 {[%clk 0:02:58]} 4. e3 {[%clk 0:02:56]}  Bf5 {[%clk 0:02:57]} 5. Be2 {[%clk 0:02:54]}  e6 {[%clk 0:02:58]} 6. O-O {[%clk 0:02:54]}  Bd6 {[%clk 0:02:53]} 7. c4 {[%clk 0:02:54]}  O-O {[%clk 0:02:52]} 8. Nc3 {[%clk 0:02:55]}  a6 {[%clk 0:02:51]} 9. Bb2 {[%clk 0:02:53]}  Ne4 {[%clk 0:02:49]} 10. Rc1 {[%clk 0:02:47]}  Nxc3 {[%clk 0:02:48]} 11. Bxc3 {[%clk 0:02:46]}  Qf6 {[%clk 0:02:42]} 12. Bd3 {[%clk 0:02:39]}  Be4 {[%clk 0:02:13]} 13. Bxe4 {[%clk 0:02:26]}  dxe4 {[%clk 0:02:13]} 14. Nd2 {[%clk 0:02:14]}  Qg6 {[%clk 0:02:13]} 15. f4 {[%clk 0:02:06]}  exf3 {[%clk 0:02:06]} 16. Qxf3 {[%clk 0:01:58]}  e5 {[%clk 0:02:06]} 17. Ne4 {[%clk 0:01:54]}  exd4 {[%clk 0:02:01]} 18. exd4 {[%clk 0:01:53]}  Rae8 {[%clk 0:01:59]} 19. Rce1 {[%clk 0:01:52]}  Bb4 {[%clk 0:01:53]} 20. Bxb4 {[%clk 0:01:32]}  Nxb4 {[%clk 0:01:53]} 21. Nc5 {[%clk 0:01:30]}  Nc2 {[%clk 0:01:51]} 22. Rxe8 {[%clk 0:01:23]}  Rxe8 {[%clk 0:01:50]} 23. Qxb7 {[%clk 0:01:20]}  Nxd4 {[%clk 0:01:31]} 24. Qxc7 {[%clk 0:00:59]}  h5 {[%clk 0:01:27]} 25. Nd7 {[%clk 0:00:52]}  Qg5 {[%clk 0:00:56]} 26. Nb6 {[%clk 0:00:29]}  Qe3+ {[%clk 0:00:40]} 27. Kh1 {[%clk 0:00:29]}  Qf2 {[%clk 0:00:33]} 28. Rg1 {[%clk 0:00:04]}  Nf3 {[%clk 0:00:30]} 29. gxf3 {[%clk 0:00:01]}  Qxf3+ {[%clk 0:00:30]} 30. Rg2 {[%clk 0:00:01]}  Re1# {[%clk 0:00:30]} 0-1


[Site "https://www.chess.com"]

[Event "Titled Tuesday Blitz January 03 Late 2023"]
[White "Bryakin, Mikhail"]
[Black "Sebag, Marie"]
[WhiteFideId "4165314"]
[BlackFideId "617822"]
[WhiteElo "2455"]
[BlackElo "2430"]
[Result "1-0"]
[Round "07"]
[TimeControl "180+2"]
[Date "2023.01.03"]
[WhiteClock "0:01:46"]
[BlackClock "0:00:03"]

1. e4 {[%clk 0:02:56]}  d6 {[%clk 0:02:58]} 2. d4 {[%clk 0:02:49]}  Nf6 {[%clk 0:02:58]} 3. Nc3 {[%clk 0:02:48]}  g6 {[%clk 0:02:54]} 4. f3 {[%clk 0:02:46]}  Bg7 {[%clk 0:02:54]} 5. Be3 {[%clk 0:02:47]}  a6 {[%clk 0:02:53]} 6. Qd2 {[%clk 0:02:47]}  b5 {[%clk 0:02:53]} 7. Bh6 {[%clk 0:02:48]}  Bxh6 {[%clk 0:02:48]} 8. Qxh6 {[%clk 0:02:49]}  Nbd7 {[%clk 0:02:47]} 9. O-O-O {[%clk 0:02:48]}  e5 {[%clk 0:02:46]} 10. g4 {[%clk 0:02:40]}  Qe7 {[%clk 0:02:35]} 11. h4 {[%clk 0:02:33]}  Bb7 {[%clk 0:02:18]} 12. Nge2 {[%clk 0:02:27]}  b4 {[%clk 0:02:10]} 13. Na4 {[%clk 0:02:27]}  Bc6 {[%clk 0:02:08]} 14. b3 {[%clk 0:02:23]}  Bxa4 {[%clk 0:02:05]} 15. bxa4 {[%clk 0:02:24]}  Nb6 {[%clk 0:01:29]} 16. Qe3 {[%clk 0:02:24]}  Nxa4 {[%clk 0:01:03]} 17. Qb3 {[%clk 0:02:23]}  Nc3 {[%clk 0:00:51]} 18. Nxc3 {[%clk 0:02:23]}  bxc3 {[%clk 0:00:51]} 19. Qxc3 {[%clk 0:02:24]}  O-O {[%clk 0:00:47]} 20. Bc4 {[%clk 0:02:23]}  Rab8 {[%clk 0:00:37]} 21. h5 {[%clk 0:02:23]}  Rb6 {[%clk 0:00:31]} 22. hxg6 {[%clk 0:02:23]}  hxg6 {[%clk 0:00:31]} 23. Qe3 {[%clk 0:02:21]}  d5 {[%clk 0:00:20]} 24. Qh6 {[%clk 0:02:16]}  Qa3+ {[%clk 0:00:18]} 25. Kd2 {[%clk 0:02:17]}  Qb4+ {[%clk 0:00:17]} 26. Ke3 {[%clk 0:02:01]}  Nh5 {[%clk 0:00:15]} 27. Bxd5 {[%clk 0:01:48]}  Qc3+ {[%clk 0:00:14]} 28. Kf2 {[%clk 0:01:48]}  Rb2 {[%clk 0:00:11]} 29. Bb3 {[%clk 0:01:45]}  Rxb3 {[%clk 0:00:03]} 30. axb3 {[%clk 0:01:46]} 1-0


[Site "https://www.chess.com"]

[Event "Titled Tuesday Blitz January 03 Late 2023"]
[White "Ballester Llagaria, Luis Eduardo"]
[Black "Avila Pavas, Santiago"]
[WhiteFideId "2297620"]
[BlackFideId "4437128"]
[WhiteElo "2298"]
[BlackElo "2522"]
[Result "0-1"]
[Round "07"]
[TimeControl "180+2"]
[Date "2023.01.03"]
[WhiteClock "0:01:52"]
[BlackClock "0:02:29"]

1. e4 {[%clk 0:03:00]}  Nf6 {[%clk 0:03:00]} 2. e5 {[%clk 0:02:58]}  Nd5 {[%clk 0:03:01]} 3. d4 {[%clk 0:02:59]}  d6 {[%clk 0:03:01]} 4. Nf3 {[%clk 0:02:59]}  g6 {[%clk 0:03:01]} 5. Bc4 {[%clk 0:02:57]}  Nb6 {[%clk 0:03:02]} 6. Bb3 {[%clk 0:02:58]}  Bg7 {[%clk 0:03:03]} 7. Qe2 {[%clk 0:02:58]}  O-O {[%clk 0:03:02]} 8. h3 {[%clk 0:02:57]}  c5 {[%clk 0:03:03]} 9. dxc5 {[%clk 0:02:53]}  dxc5 {[%clk 0:03:04]} 10. c3 {[%clk 0:02:49]}  Bf5 {[%clk 0:03:02]} 11. Bf4 {[%clk 0:02:31]}  Bd3 {[%clk 0:02:54]} 12. Qe3 {[%clk 0:02:31]}  c4 {[%clk 0:02:49]} 13. Bd1 {[%clk 0:02:20]}  Nd5 {[%clk 0:02:48]} 14. Qc1 {[%clk 0:02:16]}  Nxf4 {[%clk 0:02:47]} 15. Qxf4 {[%clk 0:02:16]}  Nc6 {[%clk 0:02:34]} 16. Nbd2 {[%clk 0:02:04]}  Qd5 {[%clk 0:02:34]} 17. b3 {[%clk 0:01:53]}  Nxe5 {[%clk 0:02:31]} 18. bxc4 {[%clk 0:01:52]}  Nxc4 {[%clk 0:02:29]} 0-1


[Site "https://www.chess.com"]

[Event "Titled Tuesday Blitz January 03 Late 2023"]
[White "Riehle, Marco"]
[Black "Yaran, Siar"]
[WhiteFideId "12904392"]
[BlackFideId "6323006"]
[WhiteElo "2368"]
[BlackElo "2288"]
[Result "1-0"]
[Round "07"]
[TimeControl "180+2"]
[Date "2023.01.03"]
[WhiteClock "0:00:40"]
[BlackClock "0:00:02"]

1. e4 {[%clk 0:03:00]}  e5 {[%clk 0:02:44]} 2. Nf3 {[%clk 0:02:59]}  Nc6 {[%clk 0:02:44]} 3. d4 {[%clk 0:02:59]}  d6 {[%clk 0:02:43]} 4. dxe5 {[%clk 0:02:59]}  Nxe5 {[%clk 0:02:44]} 5. Nxe5 {[%clk 0:02:54]}  dxe5 {[%clk 0:02:45]} 6. Qxd8+ {[%clk 0:02:53]}  Kxd8 {[%clk 0:02:46]} 7. Nc3 {[%clk 0:02:52]}  c6 {[%clk 0:02:46]} 8. Bc4 {[%clk 0:02:52]}  Ke7 {[%clk 0:02:46]} 9. Be3 {[%clk 0:02:52]}  Be6 {[%clk 0:02:45]} 10. Bxe6 {[%clk 0:02:51]}  Kxe6 {[%clk 0:02:45]} 11. O-O-O {[%clk 0:02:51]}  Nf6 {[%clk 0:02:46]} 12. f3 {[%clk 0:02:51]}  Bb4 {[%clk 0:02:41]} 13. Na4 {[%clk 0:02:49]}  b6 {[%clk 0:02:34]} 14. a3 {[%clk 0:02:48]}  Be7 {[%clk 0:02:34]} 15. g4 {[%clk 0:02:46]}  Rhd8 {[%clk 0:02:25]} 16. h4 {[%clk 0:02:42]}  h5 {[%clk 0:02:20]} 17. g5 {[%clk 0:02:39]}  Nh7 {[%clk 0:02:11]} 18. Nc3 {[%clk 0:02:34]}  Nf8 {[%clk 0:02:10]} 19. Ne2 {[%clk 0:02:27]}  Rxd1+ {[%clk 0:01:57]} 20. Rxd1 {[%clk 0:02:28]}  Rd8 {[%clk 0:01:13]} 21. Rf1 {[%clk 0:02:26]}  Ng6 {[%clk 0:01:08]} 22. Rh1 {[%clk 0:02:24]}  Rh8 {[%clk 0:00:55]} 23. Ng3 {[%clk 0:02:20]}  Nf4 {[%clk 0:00:39]} 24. Nf5 {[%clk 0:02:13]}  g6 {[%clk 0:00:24]} 25. Ng3 {[%clk 0:01:58]}  Rd8 {[%clk 0:00:23]} 26. a4 {[%clk 0:01:52]}  Bc5 {[%clk 0:00:16]} 27. Bxc5 {[%clk 0:01:48]}  bxc5 {[%clk 0:00:17]} 28. b3 {[%clk 0:01:45]}  Rd4 {[%clk 0:00:16]} 29. Rh2 {[%clk 0:01:45]}  c4 {[%clk 0:00:16]} 30. Nf1 {[%clk 0:01:24]}  cxb3 {[%clk 0:00:14]} 31. cxb3 {[%clk 0:01:25]}  Rd3 {[%clk 0:00:14]} 32. Nd2 {[%clk 0:01:25]}  Kd6 {[%clk 0:00:06]} 33. Nc4+ {[%clk 0:01:11]}  Ke6 {[%clk 0:00:06]} 34. Kc2 {[%clk 0:01:11]}  Rxf3 {[%clk 0:00:05]} 35. Rd2 {[%clk 0:01:08]}  Rh3 {[%clk 0:00:05]} 36. Rd6+ {[%clk 0:01:08]}  Ke7 {[%clk 0:00:06]} 37. Rxc6 {[%clk 0:01:09]}  Ne6 {[%clk 0:00:05]} 38. Ra6 {[%clk 0:01:07]}  Nd4+ {[%clk 0:00:05]} 39. Kd1 {[%clk 0:01:07]}  Rxb3 {[%clk 0:00:05]} 40. Rxa7+ {[%clk 0:01:06]}  Ke6 {[%clk 0:00:04]} 41. Ra6+ {[%clk 0:01:06]}  Ke7 {[%clk 0:00:04]} 42. Nxe5 {[%clk 0:01:06]}  Re3 {[%clk 0:00:02]} 43. Ra7+ {[%clk 0:00:59]}  Ke6 {[%clk 0:00:03]} 44. Nxf7 {[%clk 0:00:59]}  Rxe4 {[%clk 0:00:03]} 45. Nh8 {[%clk 0:00:59]}  Kf5 {[%clk 0:00:02]} 46. Ra5+ {[%clk 0:00:55]}  Kg4 {[%clk 0:00:01]} 47. Nxg6 {[%clk 0:00:55]}  Nf5 {[%clk 0:00:01]} 48. Nf8 {[%clk 0:00:49]}  Nxh4 {[%clk 0:00:01]} 49. g6 {[%clk 0:00:48]}  Re7 {[%clk 0:00:02]} 50. Rb5 {[%clk 0:00:44]}  Rg7 {[%clk 0:00:02]} 51. Rb6 {[%clk 0:00:41]}  Kf5 {[%clk 0:00:02]} 52. a5 {[%clk 0:00:40]} 1-0


[Site "https://www.chess.com"]